bitfinex-derivatives/quotes_BTCF0:USTF0_20220103
["timestamp","ask_amount","ask_price","bid_price","bid_amount"]
[1641241590805,1.390244,45896.0,45895.0,1e-08]
[1641241591004,1.391244,45896.0,45885.0,0.6781372]
[1641241591209,0.18,45886.0,45885.0,0.6781372]
[1641241591508,1.143,45885.0,45875.0,1.84330883]
[1641241591705,0.46067134,45876.0,45873.0,0.6781372]
[1641241591905,0.02280946,45874.0,45873.0,0.6781372]
[1641241592808,0.02280946,45874.0,45862.0,1.84330883]
[1641241593009,1.323,45863.0,45862.0,1.84330883]
[1641241593210,1.323,45863.0,45859.0,0.02]
[1641241593211,1.42518155,45863.0,45859.0,0.02]
[1641241593413,1.324,45860.0,45859.0,0.02]
[1641241593612,1.74500701,45860.0,45859.0,0.02]
[1641241594511,0.68887141,45860.0,45859.0,0.02]
[1641241594713,0.50787141,45860.0,45859.0,0.02]
[1641241594918,0.42100701,45860.0,45859.0,0.02]
[1641241595113,0.60100701,45860.0,45859.0,0.02]
[1641241595515,0.62382368,45860.0,45859.0,0.02]
[1641241595714,0.60200701,45860.0,45859.0,0.02]
[1641241596112,0.62382257,45860.0,45859.0,0.02]
[1641241596313,0.62282257,45860.0,45859.0,0.02]
[1641241596516,0.44282257,45860.0,45859.0,0.02]
[1641241598814,1.22370328,45860.0,45859.0,0.07817]
[1641241599413,0.44282257,45860.0,45859.0,0.07817]
[1641241599815,0.18,45874.0,45859.0,0.07817]
[1641241600614,0.02180771,45864.0,45860.0,0.18]
[1641241600815,0.71639409,45863.0,45860.0,0.18]
[1641241601014,0.19611837,45873.0,45862.0,0.58]
[1641241601216,1.143,45882.0,45872.0,0.58]
[1641241601416,0.30646605,45886.0,45872.0,0.08303]
[1641241601615,0.30646605,45886.0,45878.0,0.58]
[1641241601816,0.14033567,45883.0,45873.0,0.14033567]
[1641241602014,1.143,45882.0,45873.0,0.14033567]
[1641241602214,0.02180484,45874.0,45873.0,0.14033567]
[1641241602814,0.02280484,45874.0,45873.0,0.14033567]
[1641241603213,0.001,45874.0,45873.0,0.14033567]
[1641241603614,1.143,45882.0,45873.0,0.14033567]
[1641241604517,0.02180692,45874.0,45873.0,0.14033567]
[1641241604715,0.02280692,45874.0,45873.0,0.14033567]
[1641241605215,0.00120692,45874.0,45873.0,0.14033567]
[1641241605415,0.001,45874.0,45873.0,0.14033567]
[1641241606415,0.02280836,45874.0,45873.0,0.14033567]
[1641241606815,1.19661115,45871.0,45868.0,0.14033567]
[1641241607019,1.143,45871.0,45868.0,0.14033567]
[1641241607416,1.143,45871.0,45864.0,0.14033567]
[1641241607618,1.143,45871.0,45860.0,0.4]
[1641241607619,0.0218095,45865.0,45860.0,0.4]
[1641241607818,0.14033567,45864.0,45860.0,0.4]
[1641241608020,0.02181216,45861.0,45860.0,0.4]
[1641241608219,0.02181216,45861.0,45860.0,0.58]
[1641241609317,0.14033567,45864.0,45860.0,0.58]
[1641241609520,0.14033567,45864.0,45863.0,0.58]
[1641241609817,0.02180782,45868.0,45863.0,0.58]
[1641241610117,0.02180782,45868.0,45860.0,0.06801]
[1641241610320,0.02180782,45868.0,45865.0,0.58]
[1641241610618,0.14033567,45869.0,45860.0,0.06801]
[1641241610619,0.02180867,45866.0,45860.0,0.06801]
[1641241610818,0.02180867,45866.0,45859.0,0.16033567]
[1641241611016,0.02180867,45866.0,45865.0,0.58]
[1641241611218,0.91941633,45869.0,45865.0,0.58]
[1641241611418,0.77908066,45862.0,45861.0,0.79153174]
[1641241611617,0.78008066,45862.0,45861.0,0.79153174]
[1641241612418,0.78008066,45862.0,45861.0,0.1759049]
[1641241612620,0.001,45862.0,45860.0,0.1759049]
[1641241612819,0.001,45861.0,45860.0,0.1759049]
[1641241613919,0.02281124,45861.0,45860.0,0.1759049]
[1641241615622,0.8018919,45861.0,45860.0,0.79164108]
[1641241615823,1.00982757,45861.0,45860.0,0.79164108]
[1641241616123,0.23074691,45861.0,45860.0,0.61573618]
[1641241616622,0.23074691,45861.0,45859.0,0.02]
[1641241616623,0.44674691,45861.0,45859.0,0.02]
[1641241616824,0.216,45859.0,45856.0,1e-08]
[1641241617023,1.38181858,45857.0,45856.0,1e-08]
[1641241617830,1.359,45854.0,45846.0,1.47773731]
[1641241618034,0.001,45849.0,45841.0,0.58]
[1641241618224,1.359,45854.0,45839.0,1.67807298]
[1641241618225,0.001,45844.0,45839.0,1.67807298]
[1641241618426,0.16215425,45857.0,45843.0,0.90033567]
[1641241618625,0.16215425,45857.0,45853.0,0.58]
[1641241618826,0.001,45854.0,45853.0,0.58]
[1641241619025,0.001,45854.0,45843.0,0.14033567]
[1641241619227,0.77850866,45848.0,45844.0,0.16534606]
[1641241619628,0.77850866,45848.0,45847.0,0.52]
[1641241619829,0.77850866,45848.0,45844.0,0.16534606]
[1641241619830,0.91884433,45848.0,45844.0,0.16534606]
[1641241620029,0.001,45845.0,45844.0,0.16534606]
[1641241620432,0.77850866,45848.0,45844.0,0.34534606]
[1641241620631,0.77850866,45848.0,45847.0,0.58]
[1641241620829,1.11215523,45850.0,45839.0,0.58]
[1641241621029,1.11215523,45849.0,45839.0,0.58]
[1641241621628,1.11215523,45849.0,45848.0,0.58]
[1641241621829,1.39382657,45849.0,45835.0,1.82082935]
[1641241622031,1.39282657,45849.0,45840.0,0.009794]
[1641241622231,0.7785797,45847.0,45840.0,0.36518962]
[1641241622532,0.7785797,45847.0,45840.0,0.18518962]
[1641241622730,0.7785797,45847.0,45846.0,0.58]
[1641241622930,0.7795797,45847.0,45846.0,0.76]
[1641241624246,0.001,45847.0,45846.0,0.93539562]
[1641241625648,0.14033567,45857.0,45846.0,0.94518962]
[1641241625849,0.14033567,45857.0,45856.0,0.58]
[1641241626047,0.14133567,45857.0,45856.0,0.6561]
[1641241628850,0.14133567,45857.0,45856.0,0.8361]
[1641241629450,0.001,45857.0,45856.0,0.8361]
[1641241629651,0.02181181,45860.0,45856.0,0.8361]
[1641241629850,0.02181181,45860.0,45859.0,0.76]
[1641241630050,0.79697703,45867.0,45859.0,0.76]
[1641241630255,0.79697703,45867.0,45866.0,0.76]
[1641241630552,0.14033567,45872.0,45866.0,0.856934]
[1641241630850,0.001,45867.0,45866.0,0.276934]
[1641241631051,0.02280897,45867.0,45866.0,0.08714]
[1641241631255,0.02280897,45867.0,45866.0,0.58]
[1641241631454,0.02280897,45867.0,45856.0,0.37001065]
[1641241631455,0.02280897,45867.0,45860.0,0.58]
[1641241631651,0.001,45862.0,45860.0,0.58]
[1641241631851,0.001,45861.0,45860.0,0.58]
[1641241632453,0.14033567,45865.0,45860.0,0.58]
[1641241632653,0.14033567,45865.0,45864.0,0.58]
[1641241632856,0.14133567,45865.0,45857.0,0.009794]
[1641241633053,1.143,45864.0,45855.0,1.61807298]
[1641241633254,0.02181264,45858.0,45855.0,1.47773731]
[1641241633457,0.10984264,45858.0,45849.0,0.14033567]
[1641241633654,0.10984264,45858.0,45857.0,0.3965]
[1641241633855,0.10984264,45858.0,45857.0,0.5765]
[1641241634057,1.143,45857.0,45848.0,0.4565]
[1641241634257,0.001,45852.0,45847.0,3.43683731]
[1641241634459,0.001,45848.0,45847.0,3.43683731]
[1641241634659,0.09004,45848.0,45847.0,2.5356]
[1641241634860,0.08904,45848.0,45847.0,0.5765]
[1641241635163,0.09004,45848.0,45847.0,0.5765]
[1641241635360,0.08904,45848.0,45847.0,0.5765]
[1641241635758,0.77541055,45850.0,45847.0,0.8548545]
[1641241635959,0.28067134,45848.0,45847.0,0.8548545]
[1641241636360,0.00185732,45848.0,45847.0,0.8548545]
[1641241636559,0.00278598,45848.0,45847.0,0.8548545]
[1641241636760,0.00278598,45848.0,45847.0,1.0348545]
[1641241636961,0.00278598,45848.0,45847.0,0.8548545]
[1641241638967,0.00278598,45848.0,45847.0,0.9748545]
[1641241639164,0.77541055,45852.0,45847.0,0.8548545]
[1641241639365,0.77541055,45852.0,45851.0,0.6365]
[1641241639566,1.10851855,45855.0,45851.0,0.66910182]
[1641241639766,0.02180782,45868.0,45854.0,0.7575]
[1641241639965,0.14033567,45874.0,45867.0,0.5765]
[1641241640166,0.001,45869.0,45868.0,0.5765]
[1641241640866,0.0228078,45869.0,45864.0,0.15012967]
[1641241641066,0.0218078,45869.0,45864.0,0.14033567]
[1641241641766,1.1648078,45869.0,45864.0,0.14033567]
[1641241641966,1.143,45869.0,45864.0,0.14033567]
[1641241642265,0.02181077,45865.0,45864.0,0.14033567]
[1641241642466,0.02181077,45865.0,45859.0,0.14033567]
[1641241642467,1.26003077,45865.0,45859.0,0.14033567]
[1641241642665,1.26003077,45865.0,45852.0,0.5765]
[1641241642866,0.11703077,45865.0,45852.0,0.12]
[1641241643066,0.11703077,45865.0,45864.0,0.5765]
[1641241643267,0.11803077,45865.0,45856.0,0.12]
[1641241643466,0.02181077,45865.0,45864.0,0.5765]
[1641241643666,0.02281077,45865.0,45855.0,0.5765]
[1641241643865,0.14133567,45860.0,45855.0,0.5765]
[1641241644065,0.001,45856.0,45850.0,0.15012967]
[1641241644368,0.14033567,45860.0,45851.0,0.5765]
[1641241644565,0.14033567,45860.0,45859.0,0.5765]
[1641241644765,0.16214898,45860.0,45859.0,0.5765]
[1641241645770,0.16314898,45860.0,45859.0,0.5765]
[1641241645969,0.14033567,45860.0,45859.0,0.5765]
[1641241647267,0.14033567,45869.0,45860.0,0.009794]
[1641241647467,0.14033567,45869.0,45868.0,0.5765]
[1641241647867,0.78131389,45872.0,45868.0,0.5765]
[1641241648066,0.78131389,45872.0,45871.0,0.5765]
[1641241648272,0.78231389,45872.0,45871.0,0.09026]
[1641241648469,0.02280626,45872.0,45871.0,0.09026]
[1641241648868,0.02280626,45872.0,45871.0,0.66676]
[1641241649070,0.02180626,45872.0,45871.0,0.66676]
[1641241650071,0.001,45872.0,45871.0,0.676554]
[1641241650272,0.14033567,45878.0,45871.0,0.856554]
[1641241650472,0.14033567,45878.0,45877.0,0.6965]
[1641241650674,0.14033567,45878.0,45877.0,0.7565]
[1641241650874,0.02180255,45880.0,45877.0,0.7565]
[1641241651273,0.001,45878.0,45877.0,0.6965]
[1641241651472,0.001,45878.0,45877.0,0.586294]
[1641241651874,0.001,45878.0,45877.0,0.72662967]
[1641241653176,0.14033567,45883.0,45877.0,0.72662967]
[1641241653778,0.14033567,45883.0,45877.0,0.15012967]
[1641241653980,0.14033567,45883.0,45877.0,0.14033567]
[1641241654278,0.14033567,45883.0,45879.0,0.5765]
[1641241654477,0.001,45880.0,45879.0,0.5765]
[1641241654878,0.001,45880.0,45877.0,0.14033567]
[1641241655082,0.02280332,45878.0,45877.0,0.14033567]
[1641241655281,0.02280332,45878.0,45877.0,0.71683567]
[1641241655479,0.02280332,45878.0,45877.0,0.14033567]
[1641241655884,0.02280332,45878.0,45877.0,0.71683567]
[1641241656581,0.16213637,45883.0,45877.0,0.71683567]
[1641241656782,0.16213637,45883.0,45877.0,0.14033567]
[1641241656982,0.16213637,45883.0,45882.0,0.5765]
[1641241657183,0.14033567,45883.0,45882.0,0.5765]
[1641241657583,0.14133567,45883.0,45882.0,0.5765]
[1641241657800,0.001,45883.0,45882.0,0.5765]
[1641241658201,0.0217987,45888.0,45882.0,0.5765]
[1641241659302,0.001,45883.0,45882.0,0.5765]
[1641241660003,0.0217987,45888.0,45882.0,0.5765]
[1641241661205,0.001,45883.0,45882.0,0.5765]
[1641241661605,0.0217987,45888.0,45882.0,0.5765]
[1641241662003,0.0217987,45888.0,45883.0,0.14033567]
[1641241662805,0.021,45884.0,45883.0,0.14033567]
[1641241664807,0.04280081,45884.0,45876.0,0.14033567]
[1641241665007,0.13442081,45884.0,45876.0,0.14033567]
[1641241665210,0.001,45879.0,45876.0,0.14033567]
[1641241665408,0.001,45878.0,45876.0,0.14033567]
[1641241667110,0.04180081,45884.0,45876.0,0.14033567]
[1641241667309,0.75950763,45889.0,45883.0,0.7565]
[1641241667508,0.75950763,45889.0,45888.0,0.5765]
[1641241667708,0.76050763,45889.0,45888.0,0.66626]
[1641241668109,0.76050763,45889.0,45888.0,0.08976]
[1641241668510,0.02279925,45889.0,45888.0,0.08976]
[1641241668712,0.02279925,45889.0,45886.0,0.009794]
[1641241668909,0.02179925,45889.0,45886.0,0.009794]
[1641241669709,0.001,45887.0,45886.0,0.009794]
[1641241670210,0.001,45887.0,45885.0,0.04330983]
[1641241670410,0.02179925,45889.0,45885.0,0.04330983]
[1641241671216,0.02179925,45889.0,45886.0,0.5765]
[1641241671411,0.02179925,45889.0,45885.0,0.04330983]
[1641241671612,0.02179925,45889.0,45886.0,0.5765]
[1641241671813,0.02179925,45889.0,45885.0,0.04330983]
[1641241672313,0.02179925,45889.0,45888.0,0.5765]
[1641241672512,0.001,45889.0,45888.0,0.5765]
[1641241672713,0.001,45889.0,45885.0,0.04330983]
[1641241672912,0.02179927,45886.0,45885.0,0.22330983]
[1641241673112,0.02179927,45886.0,45885.0,0.79980983]
[1641241673513,0.14033567,45892.0,45885.0,0.61980983]
[1641241673715,0.02179891,45887.0,45885.0,0.61980983]
[1641241674012,0.14033567,45892.0,45885.0,0.04330983]
[1641241674214,0.02180111,45886.0,45885.0,0.04330983]
[1641241674812,0.02180111,45886.0,45885.0,0.61980983]
[1641241675313,0.14033567,45892.0,45885.0,0.61980983]
[1641241675513,0.02179839,45888.0,45885.0,0.61980983]
[1641241675916,0.14033567,45892.0,45885.0,0.04330983]
[1641241676117,0.02180048,45886.0,45885.0,0.61980983]
[1641241676818,0.02179693,45891.0,45885.0,0.79980983]
[1641241677017,0.02179693,45891.0,45890.0,0.5765]
[1641241677218,0.02179693,45891.0,45890.0,0.65959]
[1641241679019,0.02179693,45891.0,45885.0,0.04330983]
[1641241679222,0.14033567,45892.0,45885.0,0.04330983]
[1641241679821,0.02179713,45891.0,45885.0,0.04330983]
[1641241680222,0.14033567,45892.0,45885.0,0.04330983]
[1641241680520,0.02179873,45888.0,45885.0,0.04330983]
[1641241680920,0.02179873,45888.0,45886.0,0.5765]
[1641241681121,0.02179873,45888.0,45887.0,0.5765]
[1641241681326,0.02179873,45888.0,45887.0,0.06]
[1641241681520,0.14033567,45892.0,45887.0,0.06]
[1641241681721,0.02179805,45889.0,45885.0,0.04330983]
[1641241682620,0.02179805,45889.0,45886.0,0.5765]
[1641241682820,0.02179805,45889.0,45885.0,0.61980983]
[1641241683021,0.02179805,45889.0,45885.0,0.04330983]
[1641241683223,0.02179805,45889.0,45888.0,0.5765]
[1641241683623,0.009794,45890.0,45888.0,0.5765]
[1641241684021,0.009794,45890.0,45885.0,0.04330983]
[1641241684823,0.02179728,45891.0,45885.0,0.04330983]
[1641241685223,0.02179728,45891.0,45890.0,0.5765]
[1641241686626,0.02179728,45891.0,45885.0,0.04330983]
[1641241687526,0.0001,45890.0,45885.0,0.04330983]
[1641241688929,0.02179916,45887.0,45885.0,0.04330983]
[1641241689127,0.02179916,45887.0,45876.0,0.14033567]
[1641241689128,0.12,45886.0,45876.0,0.14033567]
[1641241689528,0.02180163,45881.0,45876.0,0.14033567]
[1641241689728,0.20180422,45878.0,45876.0,0.14033567]
[1641241689926,0.20280422,45878.0,45860.0,1.8882]
[1641241690130,0.0218078,45869.0,45859.0,0.23399036]
[1641241690327,0.18,45868.0,45859.0,0.16033567]
[1641241690526,0.23545747,45869.0,45859.0,0.16033567]
[1641241690727,0.18,45868.0,45859.0,0.16033567]
[1641241692626,0.02181001,45864.0,45859.0,0.16033567]
[1641241693126,0.001,45860.0,45859.0,0.16033567]
[1641241693326,0.78399579,45860.0,45859.0,0.16033567]
[1641241693526,0.78299579,45860.0,45859.0,0.16033567]
[1641241693726,0.78299579,45860.0,45859.0,0.77501673]
[1641241694327,1.11856541,45862.0,45859.0,0.77501673]
[1641241694729,0.18,45863.0,45859.0,0.77501673]
[1641241694927,0.18,45863.0,45859.0,0.16033567]
[1641241695130,0.14033567,45869.0,45859.0,0.16033567]
[1641241695527,0.02181249,45860.0,45859.0,0.16033567]
[1641241697131,0.03160392,45865.0,45859.0,0.16033567]
[1641241698434,1.11550018,45860.0,45859.0,0.16033567]
[1641241699241,1.31731225,45860.0,45859.0,0.02]
[1641241699437,1.38697625,45860.0,45849.0,0.14033567]
[1641241699637,0.12,45854.0,45847.0,2.03406947]
[1641241699838,0.06,45852.0,45847.0,2.03406947]
[1641241700240,0.14133567,45848.0,45847.0,2.03406947]
[1641241700443,0.14133567,45848.0,45847.0,1.47773731]
[1641241700841,0.14133567,45848.0,45840.0,1.59779575]
[1641241701042,1.25583585,45848.0,45838.0,0.14033567]
[1641241701242,1.25583585,45848.0,45834.0,1.47773731]
[1641241701243,0.02182257,45839.0,45834.0,1.47773731]
[1641241701443,0.09207257,45839.0,45834.0,1.47773731]
[1641241702042,0.18,45836.0,45834.0,1.47773731]
[1641241702243,1.44549561,45835.0,45830.0,0.68903092]
[1641241702444,1.44549561,45835.0,45828.0,1.47836109]
[1641241702445,0.18,45831.0,45828.0,1.47836109]
[1641241702643,1.34482999,45831.0,45828.0,1.36916109]
[1641241702843,1.34482999,45831.0,45821.0,1.59779575]
[1641241703043,0.05791037,45830.0,45821.0,1.59779575]
[1641241703845,1.143,45825.0,45821.0,1.59779575]
[1641241704045,1.2323,45825.0,45821.0,1.59779575]
[1641241704244,0.02283263,45822.0,45821.0,1.59779575]
[1641241704448,1.16583263,45822.0,45821.0,1.59779575]
[1641241704945,1.16583263,45822.0,45808.0,0.02]
[1641241705147,1.16483263,45822.0,45808.0,0.14]
[1641241705349,0.02183263,45822.0,45808.0,0.02]
[1641241705646,0.02183263,45822.0,45808.0,0.14]
[1641241705846,0.18,45820.0,45808.0,0.14]
[1641241706046,0.02183263,45822.0,45808.0,0.14]
[1641241706446,0.12,45820.0,45808.0,0.14]
[1641241706647,0.02183263,45822.0,45808.0,0.02]
[1641241706846,0.02183263,45822.0,45808.0,0.14]
[1641241707048,0.10190874,45820.0,45808.0,0.14]
[1641241707646,0.10190874,45820.0,45808.0,0.02]
[1641241708247,0.14033567,45818.0,45808.0,0.02]
[1641241710049,0.216,45835.0,45813.0,0.18]
[1641241710251,0.14033567,45832.0,45821.0,0.14033567]
[1641241710454,0.001,45827.0,45821.0,0.14033567]
[1641241710649,0.001,45822.0,45821.0,0.14033567]
[1641241710849,0.001,45822.0,45821.0,0.32033567]
[1641241711051,0.32033567,45832.0,45798.0,0.14129354]
[1641241711252,0.43870646,45828.0,45798.0,0.08289]
[1641241711450,0.43870646,45820.0,45811.0,0.02182871]
[1641241711649,0.43870646,45819.0,45810.0,0.009794]
[1641241711849,0.43870646,45819.0,45804.0,0.02183221]
[1641241712050,0.43870646,45819.0,45805.0,0.009794]
[1641241712251,0.43870646,45819.0,45813.0,0.14033567]
[1641241712449,0.02183221,45821.0,45813.0,0.14033567]
[1641241712649,0.14033567,45823.0,45813.0,0.14033567]
[1641241713151,0.43870646,45818.0,45813.0,0.14033567]
[1641241713750,0.14033567,45823.0,45813.0,0.14033567]
[1641241714753,0.001,45818.0,45813.0,0.14033567]
[1641241714951,0.001,45814.0,45813.0,0.14033567]
[1641241715357,0.43870646,45818.0,45813.0,0.14033567]
[1641241716757,0.14033567,45823.0,45813.0,0.14033567]
[1641241716959,0.14033567,45823.0,45817.0,0.02182611]
[1641241717158,0.43870646,45831.0,45820.0,0.02182447]
[1641241717759,0.18,45831.0,45818.0,0.009794]
[1641241717959,0.43870646,45823.0,45818.0,0.009794]
[1641241718159,0.43870646,45829.0,45818.0,0.009794]
[1641241718359,0.43870646,45827.0,45821.0,0.14033567]
[1641241718560,0.43870646,45829.0,45821.0,0.14033567]
[1641241718759,0.12,45827.0,45821.0,0.14033567]
[1641241718961,0.001,45822.0,45821.0,0.14033567]
[1641241720364,0.009794,45830.0,45821.0,0.14033567]
[1641241720564,0.43870646,45826.0,45821.0,0.14033567]
[1641241720765,0.009794,45830.0,45821.0,0.14033567]
[1641241720966,0.14033567,45832.0,45821.0,0.14033567]
[1641241721571,0.14033567,45832.0,45822.0,0.326784]
[1641241721770,0.14033567,45832.0,45823.0,0.009794]
[1641241722170,0.14033567,45832.0,45827.0,0.02182098]
[1641241722371,0.14033567,45832.0,45827.0,0.08039098]
[1641241722772,0.57904213,45832.0,45827.0,0.05857]
[1641241723571,0.57904213,45832.0,45823.0,0.009794]
[1641241723772,0.22650567,45832.0,45821.0,0.14033567]
[1641241723973,0.43870646,45822.0,45821.0,0.14033567]
[1641241724171,0.50082646,45822.0,45821.0,0.14033567]
[1641241725174,0.43870646,45822.0,45821.0,0.14033567]
[1641241725972,0.45970646,45822.0,45813.0,0.15012967]
[1641241726174,0.001,45817.0,45813.0,0.14033567]
[1641241726375,0.16033567,45822.0,45816.0,0.61082981]
[1641241726572,0.001,45817.0,45816.0,0.61082981]
[1641241726772,0.43870646,45817.0,45816.0,0.61082981]
[1641241726972,0.16033567,45822.0,45816.0,0.61082981]
[1641241727175,0.16033567,45822.0,45816.0,0.68878981]
[1641241727574,1.10770526,45817.0,45816.0,0.07796]
[1641241727973,1.05290526,45817.0,45816.0,0.07796]
[1641241728178,1.05290526,45817.0,45816.0,0.07896]
[1641241728376,1.05290526,45817.0,45816.0,0.07796]
[1641241728675,1.49161172,45817.0,45813.0,0.14033567]
[1641241728874,0.43870646,45818.0,45816.0,0.31840243]
[1641241729274,0.77577186,45819.0,45816.0,0.31840243]
[1641241729674,0.77577186,45819.0,45807.0,1.45618668]
[1641241729675,0.16823582,45815.0,45807.0,1.45618668]
[1641241729876,0.43870646,45808.0,45807.0,1.45618668]
[1641241730075,0.51756646,45808.0,45807.0,1.45618668]
[1641241730285,0.65790213,45808.0,45807.0,1.45618668]
[1641241730474,0.65690213,45808.0,45800.0,2.08095983]
[1641241730675,0.43870646,45805.0,45800.0,0.48316408]
[1641241731276,0.14033567,45808.0,45797.0,0.61974659]
[1641241731476,0.61870646,45798.0,45794.0,1.41064344]
[1641241731675,0.49870646,45795.0,45786.0,1.25835326]
[1641241731875,0.43870646,45787.0,45786.0,1.25835326]
[1641241732274,0.06544506,45788.0,45786.0,1.25835326]
[1641241732475,0.14033567,45787.0,45786.0,1.25835326]
[1641241732978,0.02184075,45803.0,45786.0,1.28019401]
[1641241733175,0.43870646,45806.0,45786.0,1.34792401]
[1641241733375,0.43870646,45800.0,45787.0,0.009794]
[1641241733575,0.43870646,45801.0,45787.0,0.009794]
[1641241733874,0.216,45814.0,45787.0,0.009794]
[1641241733875,0.77377329,45791.0,45787.0,0.009794]
[1641241734379,0.77377329,45791.0,45785.0,0.14033567]
[1641241734976,0.14033567,45800.0,45785.0,0.14033567]
[1641241734977,0.43870646,45790.0,45785.0,0.14033567]
[1641241735178,0.77377329,45795.0,45786.0,0.009794]
[1641241735375,0.77377329,45795.0,45786.0,0.100364]
[1641241735578,0.77377329,45795.0,45788.0,0.02183985]
[1641241735776,0.02,45791.0,45788.0,0.02183985]
[1641241735976,0.02,45791.0,45786.0,0.100364]
[1641241736179,0.79377329,45791.0,45786.0,0.100364]
[1641241736376,0.79377329,45791.0,45790.0,0.14033567]
[1641241736577,0.16217394,45809.0,45791.0,0.009794]
[1641241736777,0.43870646,45808.0,45799.0,0.02183443]
[1641241737077,0.14033567,45817.0,45800.0,0.009794]
[1641241737278,1.12157387,45820.0,45803.0,0.02183266]
[1641241737477,1.09974121,45820.0,45800.0,0.009794]
[1641241737876,0.43870646,45818.0,45810.0,0.02182953]
[1641241738080,1.09974121,45820.0,45810.0,0.09789953]
[1641241738477,0.14033567,45830.0,45819.0,0.14033567]
[1641241738679,0.43870646,45828.0,45819.0,0.14033567]
[1641241738878,0.43870646,45820.0,45819.0,0.14033567]
[1641241739278,0.18,45826.0,45819.0,0.14033567]
[1641241739477,0.43870646,45820.0,45819.0,0.14033567]
[1641241739778,0.61870646,45820.0,45819.0,0.14033567]
[1641241739980,0.61870646,45820.0,45810.0,0.14033567]
[1641241740179,0.14187494,45826.0,45810.0,0.14033567]
[1641241740180,0.43870646,45811.0,45810.0,0.14033567]
[1641241740381,0.52675646,45811.0,45810.0,0.14033567]
[1641241740582,0.52775646,45811.0,45810.0,0.14033567]
[1641241740979,0.54959337,45811.0,45810.0,0.14033567]
[1641241741179,0.52775646,45811.0,45810.0,0.14033567]
[1641241741781,1.67075646,45811.0,45810.0,0.12613567]
[1641241742082,1.87259508,45811.0,45804.0,0.14033567]
[1641241742384,1.8623778,45805.0,45790.0,0.16217429]
[1641241742580,0.43870646,45800.0,45790.0,0.16217429]
[1641241742781,0.28067134,45805.0,45790.0,0.17196829]
[1641241743083,0.40067134,45805.0,45790.0,0.17196829]
[1641241743280,0.43870646,45799.0,45790.0,0.17196829]
[1641241743480,0.43870646,45798.0,45790.0,0.17196829]
[1641241743681,0.02184064,45804.0,45790.0,0.15012967]
[1641241743882,0.43870646,45794.0,45790.0,0.15012967]
[1641241744382,0.14033567,45800.0,45790.0,0.15012967]
[1641241744581,0.43870646,45795.0,45790.0,0.15012967]
[1641241744781,0.14033567,45800.0,45790.0,0.15012967]
[1641241744981,0.43870646,45798.0,45790.0,0.15012967]
[1641241745181,0.14033567,45800.0,45790.0,0.15012967]
[1641241745383,0.43870646,45791.0,45790.0,0.14033567]
[1641241745586,0.43870646,45791.0,45785.0,0.14033567]
[1641241745785,0.43870646,45788.0,45781.0,0.14033567]
[1641241745984,0.43870646,45782.0,45781.0,0.14033567]
[1641241746183,0.51180646,45782.0,45781.0,0.14033567]
[1641241746394,0.51180646,45782.0,45775.0,0.14033567]
[1641241746586,0.0731,45782.0,45775.0,0.14033567]
[1641241747083,0.43870646,45776.0,45775.0,0.14033567]
[1641241747283,0.12,45776.0,45775.0,0.14033567]
[1641241747485,0.43870646,45776.0,45775.0,3.567e-05]
[1641241747685,1.143,45775.0,45770.0,0.02184816]
[1641241747885,0.43870646,45772.0,45766.0,0.14033567]
[1641241748087,0.43870646,45770.0,45766.0,0.14033567]
[1641241748287,0.43870646,45767.0,45764.0,0.61397362]
[1641241748491,0.02185989,45765.0,45764.0,0.61397362]
[1641241748687,0.02185989,45765.0,45758.0,0.02]
[1641241748886,1.58170646,45759.0,45757.0,0.61409125]
[1641241749087,0.43870646,45759.0,45746.0,1.50191124]
[1641241749286,0.43870646,45761.0,45746.0,1.48005135]
[1641241749486,0.33420438,45766.0,45746.0,1.48005135]
[1641241749487,0.14033567,45766.0,45746.0,1.48005135]
[1641241749687,0.14033567,45766.0,45746.0,1.46905135]
[1641241749885,0.14033567,45766.0,45745.0,0.009794]
[1641241749886,1.72204213,45766.0,45747.0,0.01234139]
[1641241750088,0.14033567,45766.0,45739.0,1.5955542]
[1641241750291,0.009794,45765.0,45748.0,1.5955542]
[1641241750490,0.009794,45765.0,45737.0,1.72376464]
[1641241750491,0.42100701,45749.0,45737.0,1.72376464]
[1641241750694,0.42100701,45749.0,45748.0,0.001]
[1641241750892,1.56400701,45749.0,45748.0,0.001]
[1641241751189,1.56400701,45749.0,45737.0,1.71355864]
[1641241751390,0.43870646,45738.0,45737.0,1.71355864]
[1641241751587,0.42744332,45749.0,45737.0,1.71355864]
[1641241751588,0.07087,45745.0,45737.0,1.71355864]
[1641241751788,0.07087,45745.0,45731.0,0.55435094]
[1641241752189,0.07087,45745.0,45733.0,0.02186589]
[1641241752392,0.07087,45745.0,45721.0,0.14033567]
[1641241752393,0.14033567,45741.0,45736.0,0.02186433]
[1641241752590,0.14033567,45741.0,45740.0,0.0002186]
[1641241752790,0.28067134,45749.0,45740.0,0.02207977]
[1641241752988,0.28067134,45749.0,45745.0,0.0218598]
[1641241753195,0.76900919,45753.0,45748.0,0.02185804]
[1641241753491,0.76900919,45753.0,45752.0,0.001]
[1641241753689,0.76900919,45753.0,45752.0,0.11638638]
[1641241753889,0.43870646,45759.0,45752.0,0.09453]
[1641241754088,0.43870646,45759.0,45752.0,0.09353]
[1641241754289,0.009794,45761.0,45752.0,0.09353]
[1641241754491,0.43870646,45759.0,45752.0,0.23386567]
[1641241754689,0.43870646,45755.0,45752.0,0.23386567]
[1641241754892,0.009794,45761.0,45754.0,0.001]
[1641241755090,0.43870646,45755.0,45754.0,0.001]
[1641241756190,0.009794,45762.0,45754.0,0.001]
[1641241756391,0.43870646,45759.0,45754.0,0.001]
[1641241756592,0.009794,45762.0,45754.0,0.001]
[1641241756791,0.02186286,45756.0,45754.0,0.001]
[1641241756993,0.43870646,45755.0,45752.0,0.14033567]
[1641241758992,0.43870646,45755.0,45754.0,0.001]
[1641241759792,0.009794,45762.0,45754.0,0.001]
[1641241759994,0.009794,45762.0,45752.0,0.22101567]
[1641241760293,0.43870646,45753.0,45752.0,0.22101567]
[1641241760493,0.009794,45762.0,45752.0,0.22101567]
[1641241760694,0.43870646,45753.0,45752.0,0.14033567]
[1641241760897,0.43870646,45753.0,45752.0,0.14133567]
[1641241761096,0.43870646,45753.0,45752.0,0.14033567]
[1641241762096,0.43870646,45757.0,45752.0,0.14033567]
[1641241762297,0.43870646,45757.0,45752.0,0.19921567]